Cogmind - Beta 13 @@@ ROGUE MODE // 2024.04.06 @ 20:45:03 Player: Copyrite Result: Destroyed by S-10 Pest with Light Assault Rifle Performance ------------- Evolutions (0) 0 Regions Visited (1) 200 Robots Destroyed (15) 75 Value Destroyed (286) 286 Prototype IDs (2) 40 Alien Tech Used (0) 0 Bonus (0) 0 TOTAL SCORE: 601 Bonus ------- None Cogmind --------- Core Integrity 0/250 Matter 230/300 Energy 250/250 System Corruption 9% Temperature Cool (0) Movement Treading (160) Location -10/Materials Parts ------- > --- POWER (1) -------- Ion Engine > --- PROPULSION (2) --- Light Treads Light Treads > --- UTILITY (2) ------ Small Storage Unit Signal Interpreter > --- WEAPON (2) ------- Grenade Launcher > --- INVENTORY (8) ---- Light Ion Engine High-capacity Storage Unit ECM Suite Hacking Suite Datajack Peak State ------------ > --- POWER ------------ Light Ion Engine > --- PROPULSION ------- Light Treads Light Treads > --- UTILITY ---------- Small Storage Unit ECM Suite > --- WEAPON ----------- Light Assault Rifle Mining Claw > --- INVENTORY -------- Ion Engine Light Ion Engine High-capacity Storage Unit Signal Interpreter Hacking Suite Medium Laser Grenade Launcher Datajack [Rating: 8] Favorites ----------- Power Ion Engine Engine Ion Engine Propulsion Light Treads Treads Light Treads Leg Aluminum Leg Utility Small Storage Unit Device ECM Suite Storage Small Storage Unit Processor Signal Interpreter Weapon Mining Claw Energy Gun Medium Laser Ballistic Gun Light Assault Rifle Launcher Grenade Launcher Slashing Weapon Mining Claw Build | -11 -10 ------- Run | Yrd Mat Slots Evolved . | . . Power . | . . Propulsion . | . . Utility . | . . Weapon . | . . Parts Attached 20 | 7 13 Power 5 | 2 3 Engine 5 | 2 3 Core . | . . Reactor . | . . Propulsion 6 | 2 4 Treads 4 | . 4 Leg 2 | 2 . Wheel . | . . Hover . | . . Flight . | . . Utility 3 | 1 2 Device 1 | . 1 Storage 1 | 1 . Processor 1 | . 1 Hackware . | . . Protection . | . . Artifact . | . . Weapon 6 | 2 4 Energy Gun 2 | 1 1 Energy Cannon . | . . Ballistic Gun 1 | 1 . Ballistic Cannon . | . . Launcher 2 | . 2 Special Weapon . | . . Impact Weapon . | . . Slashing Weapon 1 | . 1 Piercing Weapon . | . . Special Melee Weapon . | . . Unidentified Prototypes . | . . Parts Lost 2 | . 2 Power . | . . Propulsion . | . . Utility . | . . Weapon 2 | . 2 Highest Loss Streak 2 | . 2 To Critical Strikes . | . . Average Slot Usage (%) 97 | . 97 Engine 14 | . 14 Treads 21 | . 21 Leg 6 | . 6 Device 5 | . 5 Storage 14 | . 14 Processor 7 | . 7 Energy Gun 5 | . 5 Ballistic Gun 8 | . 8 Launcher 1 | . 1 Slashing Weapon 12 | . 12 Naked Turns . | . . Heaviest Build 16 | 13 16 Greatest Support 40 | 20 40 Greatest Overweight (x) . | . . Average Overweight (x) . | . . Largest Inventory Capacity 8 | 8 8 Average Capacity 7 | 7 8 Most Carried 8 | 5 8 Average Carried 6 | 3 6 Final Capacity 8 | 8 8 Final Carried 5 | 5 5 Class Distribution -------------------- 100% | Mutant Dominant Class ---------------- Mutant | -10/Materials Resources | -11 -10 ----------- Run | Yrd Mat Matter Collected 403 | 271 132 Remotely . | . . Salvage Created 445 | 99 346 Parts 32 | 3 29 Haulers Intercepted . | . . Recyclers Shooed . | . . Parts Field Recycled . | . . Retrieved Matter . | . . Parts Self-Destructed . | . . Prevented . | . . Kills | -11 -10 ------- Run | Yrd Mat Combat Hostiles Destroyed 10 | . 10 Melee 2 | . 2 Guns 6 | . 6 AOE 2 | . 2 Classes Destroyed 6 | 1 5 Worker 1 | . 1 Builder 2 | . 2 Recycler 1 | 1 . Operator 1 | . 1 Swarmer 5 | . 5 Grunt 5 | . 5 Best Kill Streak 4 | 1 4 Combat Bots Only 2 | . 2 Max Kills in Single Turn 4 | 1 4 Gunslinging . | . . Exploded 2 | . 2 Melee 1 | . 1 Uniques/NPCs Destroyed . | . . Combat | -11 -10 -------- Run | Yrd Mat Hostile Shots Fired 80 | . 80 Missed 18 | . 18 Damage Taken 933 | . 933 Core 257 | . 257 Absorbed by Shields . | . . Core Remaining (%) 100 | 100 . Volleys Fired 65 | 1 64 Largest 2 | 2 1 Hottest 70 | 70 50 Shots Fired 66 | 2 64 Gun 62 | 2 60 Cannon . | . . Launcher 4 | . 4 Special . | . . Kinetic 43 | 1 42 Thermal 19 | 1 18 Explosive 4 | . 4 Electromagnetic . | . . Robot Hit Streak 10 | 2 10 Robot Miss Streak 4 | . 4 Penetration Max . | . . Secondary Targets . | . . Shots Hit Robots 48 | 2 46 Core Hits 27 | 2 25 Critical Kills . | . . Critical Parts Destroyed . | . . Critical Strikes 5 | . 5 Burn 5 | . 5 Melee Attacks 28 | . 28 Impact . | . . Slashing 28 | . 28 Piercing . | . . Sneak Attacks 3 | . 3 Combat Hostiles . | . . Follow-up Attacks . | . . Damage Inflicted 770 | 20 750 Guns 403 | 20 383 Cannons . | . . Explosions 168 | . 168 Melee 190 | . 190 Ramming 9 | . 9 Kinetic 252 | 7 245 Thermal 151 | 13 138 Explosive 168 | . 168 Electromagnetic . | . . Impact . | . . Slashing 190 | . 190 Piercing . | . . Highest Corruption 9 | . 9 Average Corruption 9 | . 9 Corruption Purged . | . . Corruption Blocked . | . . Effects 1 | . 1 Data Loss (minor) 1 | . 1 Overload Shots . | . . Overflow Damage 10 | . 10 Projectiles . | . . Explosions . | . . Melee 10 | . 10 Knockbacks . | . . Impact . | . . Kinetic . | . . Secondary . | . . Self-Inflicted Damage 5 | . 5 Shots 1 | . 1 Rammed . | . . Targets Rammed 1 | . 1 Kicked 1 | . 1 Crushed . | . . Highest Temperature 124 | 30 124 Average Temperature 35 | 18 36 Received Heat Transfer 174 | . 174 Siege Activations . | . . Robots Corrupted . | . . Combat Hostiles . | . . Parts Fried . | . . Impact Corruptions . | . . Robots Melted . | . . Combat Hostiles . | . . Parts Melted 2 | . 2 Heat Transferred 814 | 37 777 Parts Sabotaged . | . . Parts Stolen . | . . Parts Stripped . | . . Power Chain Reactions . | . . Alert | -11 -10 ------- Run | Yrd Mat Peak Influence 153 | 5 153 Initial 3 | . 3 Average 41 | 2 45 Maximum Alert Level . | . . Low Security (%) 100 | 100 100 Level 1 . | . . Level 2 . | . . Level 3 . | . . Level 4 . | . . Level 5 . | . . High Security . | . . Max Security . | . . Squads Dispatched 2 | . 2 Investigation . | . . Extermination . | . . Reinforcement 2 | . 2 Assault . | . . Garrison . | . . Intercept . | . . Searches Triggered . | . . Construction Impeded . | . . Haulers Reinforced . | . . Active Scanning Responses . | . . Cargo Convoy Interrupts . | . . Stealth | -11 -10 --------- Run | Yrd Mat Distress Signals 2 | . 2 Communications Jammed . | . . Distress Signals . | . . Times Spotted 21 | . 21 Peak Tracking Total 4 | . 4 Tactical Retreats 3 | . 3 Traps | -11 -10 ------- Run | Yrd Mat Traps Triggered 1 | . 1 Indirectly . | . . Trap Hack Attempts . | . . Triggered . | . . Disarmed 4 | . 4 Reprogrammed . | . . Reused . | . . Traps Extracted . | . . Installed . | . . Triggered . | . . Machines | -11 -10 ---------- Run | Yrd Mat Machines Disabled 2 | . 2 Max in Single Turn 1 | . 1 Machines Repaired . | . . Machines Dismantled . | . . Machines Sabotaged . | . . Overloaded Fab Kills . | . . Hacking | -11 -10 --------- Run | Yrd Mat Machines Accessed 4 | . 4 Terminals 3 | . 3 Fabricators . | . . Repair Stations . | . . Recycling Units 1 | . 1 Scanalyzers . | . . Garrison Access . | . . Total Hacks 7 | . 7 Successful 4 | . 4 Failed 3 | . 3 Catastrophic 1 | . 1 Database Lockouts . | . . Manual 2 | . 2 Terminals 6 | . 6 Fabricators . | . . Repair Stations . | . . Recycling Units 1 | . 1 Scanalyzers . | . . Garrison Access . | . . Terminal Hacks 4 | . 4 Prototype ID Bank 1 | . 1 Emergency Access Points 1 | . 1 Locate Traps 1 | . 1 Disarm Traps 1 | . 1 Fabricator Hacks . | . . Repair Station Hacks . | . . Recycling Unit Hacks . | . . Scanalyzer . | . . Garrison Access Hacks . | . . Unauthorized Hacks . | . . Terminals . | . . Fabricators . | . . Repair Stations . | . . Recycling Units . | . . Scanalyzers . | . . Garrison Access . | . . Data Cores Recovered . | . . Used . | . . Hacking Detections 4 | . 4 Full Trace Events . | . . Feedback Events . | . . Feedback Blocked . | . . Robot Schematics Acquired . | . . Robots Built . | . . Authchips . | . . Time . | . . Total Robot Build Rating . | . . Part Schematics Acquired . | . . Parts Built . | . . Authchips . | . . Time . | . . Total Part Build Rating . | . . Parts Repaired . | . . Time . | . . Parts Recycled . | . . Recycled Matter . | . . Retrieved Matter . | . . Retrieved Components . | . . Parts Scanalyzed . | . . Part Schematics Acquired . | . . Parts Damaged . | . . Bothacking | -11 -10 ------------ Run | Yrd Mat Used RIF Installer . | . . Robots Hacked . | . . Non-combat . | . . Combat . | . . Robot Hacks Applied . | . . Relay Couplers Released . | . . Fabnet Peak Effective % . | . . Robots Rewired . | . . Allies Hacked . | . . Hacks Repelled . | . . Allies | -11 -10 -------- Run | Yrd Mat Total Allies . | . . Largest Group . | . . Highest-Rated Group . | . . Highest-Rated Ally . | . . Total Orders . | . . Ally Attacks . | . . Total Damage . | . . Kills . | . . Allies Corrupted . | . . Allies Melted . | . . Intel | -11 -10 ------- Run | Yrd Mat Robot Analysis Total . | . . Derelict Logs Recovered . | . . Drone Launches . | . . Drone Recoveries . | . . Exploration | -11 -10 ------------- Run | Yrd Mat Turns Passed 1047 | 81 966 Spaces Moved 534 | 53 481 Core 2 | 2 . Treads 348 | . 348 Legs 184 | 51 133 Wheels . | . . Hover . | . . Flight . | . . Fastest Speed 50 | 50 120 Average Speed 145 | 117 148 Slowest Speed 160 | 120 160 Overloaded Moves . | . . Propulsion Burnouts . | . . Robots Hopped . | . . Cave-ins Triggered 1 | . 1 Exploration Rate (%) 37 | 4 70 Regions Visited 1 Branch Regions . Pre-discovered Areas . | . . Known Exits Taken . | . . Unknown Exits Taken 1 | 1 . Scrap Searched . | . . Spaces Dug 7 | . 7 Terrain Destroyed 21 | . 21 Melee 7 | . 7 Projectile . | . . AOE 14 | . 14 Terrain Rammed . | . . Walls Destroyed . | . . Machines Disabled . | . . Actions | -11 -10 --------- Run | Yrd Mat Total 686 | 66 620 Wait 19 | 1 18 Move 533 | 52 481 Hop . | . . Pick Up 10 | 5 5 Fast Attach 7 | 6 1 Attach 1 | . 1 Detach . | . . Swap 12 | 1 11 Drop 10 | . 10 Fire 65 | 1 64 Melee 28 | . 28 Ram . | . . Kick 1 | . 1 Crush . | . . Escape Stasis . | . . Rewire . | . . Trap . | . . Miscellaneous . | . . Route ------- -11/Scrapyard -10/Materials (discovered 4 exits: *Mat x3 / *Min) History --------- Turn | Location | Event 8 | -11/Scrapyard | Discovered new exit (range 13) 82 | -11/Scrapyard | Entered Materials 197 | -10/Materials | Discovered new exit (range 14) 287 | -10/Materials | Discovered new exit (range 3) 307 | -10/Materials | Build established: Mutant 505 | -10/Materials | Discovered new exit (range 16) 530 | -10/Materials | Identified exit to Materials 642 | -10/Materials | Discovered exit to Materials (range 15) 778 | -10/Materials | Core integrity fell below 50% 979 | -10/Materials | Identified exit to Mines 1012 | -10/Materials | Crushed by falling debris 1012 | -10/Materials | Core integrity fell below 20% 1048 | -10/Materials | Destroyed by S-10 Pest with Light Assault Rifle Last Messages --------------- K-01 Serf cleans the Pressure Siphon. Dropped Lgt. Treads. Dropped Lgt. Ion Engine. Dropped Lgt. Treads. Connecting with Terminal... >>Traps(Disarm) Disarmed 4 Blade Traps. EXIT=IDENTIFIED: MINES U-05 Engineer builds a Wall. The unstable cave ceiling collapses. Crushed by falling debris. Mining Claw destroyed. System corrupted by crushing effect (+5). Med. Laser destroyed. System corrupted by crushing effect (+4). U-05 Engineer builds a Wall. System corrupted: Component data lost. S-10 Pest destroyed. U-05 Engineer destroyed. Atomic Centrifuge disabled. Map ----- +----------------------------------------------------+ | | | | | | | | | | | | | ???????????????????????????????????????????? | | ???????????????????????????????????????????? | | ???????????????????????????????????????????? | | ???????????????????????????????????????????? | | ???????????????????????????????????????????? | | ???????????????????????????????????????????? | | ???????????????????????????????????????????? | | ????????????#####?????????#########????????? | | ???????????##"""##????????# #####????? | | ??????????##"|||"##???????# """ # #????? | | ??????????#"" ""#???##### "T" # < #????? | | ??????????# ## "T" # #= #????? | | ??????????# > #" # %+= ###### | | ??????????# ## !! # *#[ | | ??????????# #???!% # # | | ??????????## ##????? # """ # | | ?????######## ##????? # """ # ### ## | | ?????# # ####### # """ # #??? # | | ?????# """ + !%! # #????# | | ?????# """ # @ *= ####### #????? | | ?????# """ # s = =## ! #????? | | ?????# ?# ##+#### ## =^#????? | | ?????# ?# # #?#= ##=!^#????? | | ?############ # ### ##!/%#????? | | ?# T # + + # " # !/#????? | | ?# """ # # ### # ##= !#????? | | ?# """ ##### #?# ######### ###### | | ?# """ #???# #?# ## = #== | | ?# [ #???# #?# ## += | | ?# #???##+##?# ## # | | ?# #????# #?## ## == ### #####/ | | ?#######+######### ### # == !#?# #????? | | ??????# # == #?# #????? | | ??????# / #?# #????? | | ??????# # ### #????? | | ??????# """ ## # %+= [#????? | | ??????# === """ ######## """[###=#????? | | ?????## === """ ######## """ #?# #????? | | ?????# *== """ + """ #?# #????? | | ?????# ####### #?# #????? | | ?????# #??######+####?# ###### | | ?????### ##+###### #???# # | | ???????# ### ## """ ## "T" #???# # """" | | ????####+### ## """ ## """ #???# # """" | +----------------------------------------------------+ Best States ------------- Heat Dissipation 25 Energy Generation 10 Energy Capacity 250 Matter Stores 300 Matter Capacity 300 Sight Range 16 Terrain Scan Density 10 ECM Strength 1 Evasion (%) 55 Recoil Reduction 2 Item Schematics ----------------- None Robot Schematics ------------------ None Fabricated ------------ Nothing Alien Tech Used ----------------- None Achievements -------------- None Challenges ------------ None Game ------ Seed LinkedSwordCapacitor Manual? 0 Play Time 00:11:35 Cumulative 9.3 hours Start 2024.04.06 @ 20:33:50 End 2024.04.06 @ 20:45:03 Sessions 1 Manual Loads 0 Difficulty Rogue Special Mode None Game No. 18 Rogue 18 Adventurer 0 Explorer 0 Win Type - Total 0 Types 0/0/0/0/0/0/0/0/0 Lore% 8 Gallery% 14 Achievement% 14 Wizard Run 0 Options --------- Layout 1 ASCII 0 Keyboard 0 Movement Numpad Keybinds 0 Fullscreen 1 Font 32/SmallcapsGlow Map View 50x35 Zoom Use 0% Tactical HUD 0 Map Filters NONE Filters NONE Steam 1 RUN: 1a6f6ab1-49ac-4440-a552-a8486c437789